[Event "FIDE World Cadets U8 2022"]
[Site "Batumi"]
[Date "2022.09.24"]
[Round "8.36"]
[White "Shogdzhiev, Roman Sav"]
[Black "Llari, Marc"]
[Result "0-1"]
[ECO "B45"]
[WhiteElo "1715"]
[BlackElo "1800"]
[Annotator "NA RC COMBH"]
[PlyCount "94"]
[EventDate "2022.09.16"]
[EventType "swiss"]
[EventCountry "GEO"]
[SourceTitle "playchess.com"]
[Source "ChessBase"]
[SourceQuality "1"]
[TimeControl "5400+30"]

1. e4 {[%emt 0:01:00]} c5 {[%emt 0:01:00]} 2. Nf3 {[%emt 0:00:00]} e6 {[%emt 0:00:30]} 3. d4 {[%emt 0:00:00]} cxd4 {[%emt 0:00:30]} 4. Nxd4 {[%emt 0:00:00]} Nf6 {[%emt 0:00:30]} 5. Nc3 {[%emt 0:00:00]} Nc6 {[%emt 0:00:00]} 6. Nxc6 {[%emt 0:00:30]} bxc6 {[%emt 0:00:00]} 7. e5 {[%emt 0:00:00]} Nd5 {[%emt 0:00:30]} 8. Ne4 {[%emt 0:00:00]} Qc7 {[%emt 0:00:30]} 9. f4 {[%emt 0:00:30]} Qb6 {[%emt 0:00:30]} 10. c4 {[%emt 0:00:30]} Bb4+ {[%emt 0:00:30]} 11. Ke2 {[%emt 0:00:00]} f5 {[%emt 0:00:30]} 12. exf6 {[%emt 0:00:00]} Nxf6 {[%emt 0:00:00]} 13. Be3 {[%emt 0:00:00]} Qd8 {[%emt 0:00:00]} 14. Nd6+ {[%emt 0:06:00]} Bxd6 {[%emt 0:00:30]} 15. Qxd6 {[%emt 0:00:00]} Bb7 {[%emt 0:00:30]} 16. Rd1 {[%emt 0:12:00]} Rc8 {[%emt 0:00:30]} 17. g4 {[%emt 0:13:30]} c5 {[%emt 0:00:30]} 18. Rg1 {[%emt 0:03:30]} Rf8 {[%emt 0:00:30]} 19. Bg2 {[%emt 0:06:30]} Bxg2 {[%emt 0:00:30]} 20. Rxg2 {[%emt 0:00:00]} Qb6 {[%emt 0:00:30]} 21. Qe5 {[%emt 0:03:00]} Qc6 {[%emt 0:04:30]} 22. Kf2 {[%emt 0:08:30]} Qe4 {[%emt 0:16:30]} 23. Qxe4 {[%emt 0:03:30]} Nxe4+ {[%emt 0:00:30]} 24. Kf3 {[%emt 0:02:30]} Nf6 {[%emt 0:00:30]} 25. Rd6 {[%emt 0:01:30]} Rc7 {[%emt 0:02:30]} 26. Rgd2 {[%emt 0:00:30]} Ke7 {[%emt 0:01:30]} 27. h3 {[%emt 0:21:56]} Nd5 {[%emt 0:03:30]} 28. R6xd5 {[%emt 0:08:03]} exd5 {[%emt 0:00:30]} 29. Rxd5 {[%emt 0:00:00]} d6 {[%emt 0:00:00]} 30. Bd2 {[%emt 0:02:17]} Kd7 {[%emt 0:01:00]} 31. Rd3 {[%emt 0:04:47]} Rb7 {[%emt 0:00:30]} 32. b3 {[%emt 0:01:08]} Kc6 {[%emt 0:00:30]} 33. Re3 {[%emt 0:00:00]} Rbf7 {[%emt 0:00:30]} 34. Re4 {[%emt 0:00:09]} Kd7 {[%emt 0:00:30]} 35. Re1 {[%emt 0:00:44]} g6 {[%emt 0:02:30]} 36. Rd1 {[%emt 0:00:19]} Re7 {[%emt 0:01:30]} 37. Be3 {[%emt 0:01:51]} Kc6 {[%emt 0:00:30]} 38. Bf2 {[%emt 0:01:10]} Re6 {[%emt 0:02:30]} 39. Bg3 {[%emt 0:01:15]} a5 {[%emt 0:01:30]} 40. Rd5 {[%emt 0:01:25]} Ref6 {[%emt 0:00:30]} 41. h4 {[%emt 0:01:39]} a4 {[%emt 0:00:30]} 42. h5 {[%emt 0:00:36]} axb3 {[%emt 0:00:30]} 43. axb3 {[%emt 0:00:13]} Rb8 {[%emt 0:00:30]} 44. Rd3 {[%emt 0:00:23]} gxh5 {[%emt 0:00:30]} 45. gxh5 {[%emt 0:00:30]} Rf5 {[%emt 0:00:00]} 46. Kg4 {[%emt 0:00:07]} Rbf8 {[%emt 0:00:00]} 47. Re3 {[%emt 0:00:28]} d5 {[%emt 0:00:30]} 0-1

[Event "FIDE World Cadets U8 2022"]
[Site "Batumi"]
[Date "2022.09.24"]
[Round "8.37"]
[White "Banerjee, Supratit"]
[Black "Annapureddy, Rheyansh Reddy"]
[Result "0-1"]
[ECO "B22"]
[WhiteElo "1484"]
[BlackElo "1698"]
[Annotator "NA RC COMBH"]
[PlyCount "89"]
[EventDate "2022.09.16"]
[EventType "swiss"]
[EventCountry "GEO"]
[SourceTitle "playchess.com"]
[Source "ChessBase"]
[SourceQuality "1"]
[TimeControl "5400+30"]

1. e4 {[%emt 0:05:00]} c5 {[%emt 0:01:00]} 2. c3 {[%emt 0:03:30]} d5 {[%emt 0:00:30]} 3. exd5 {[%emt 0:01:30]} Qxd5 {[%emt 0:01:30]} 4. d4 {[%emt 0:02:30]} cxd4 {[%emt 0:00:30]} 5. cxd4 {[%emt 0:01:30]} Nc6 {[%emt 0:00:30]} 6. Nf3 {[%emt 0:01:30]} e6 {[%emt 0:02:30]} 7. Nc3 {[%emt 0:03:30]} Bb4 {[%emt 0:01:30]} 8. Bd2 {[%emt 0:03:30]} Qd8 {[%emt 0:01:30]} 9. a3 {[%emt 0:00:30]} Ba5 {[%emt 0:01:30]} 10. Bb5 {[%emt 0:02:30]} Nge7 {[%emt 0:01:30]} 11. O-O {[%emt 0:01:30]} O-O {[%emt 0:00:30]} 12. Bd3 {[%emt 0:02:30]} h6 {[%emt 0:02:30]} 13. Be3 {[%emt 0:02:30]} Bc7 {[%emt 0:06:30]} 14. Qd2 {[%emt 0:02:30]} f5 {[%emt 0:05:30]} 15. Kh1 {[%emt 0:01:30]} f4 {[%emt 0:01:30]} 16. Bxf4 {[%emt 0:00:30]} Bxf4 {[%emt 0:00:00]} 17. Qc2 {[%emt 0:00:00]} Nd5 {[%emt 0:02:00]} 18. Rad1 {[%emt 0:00:00]} Nxc3 {[%emt 0:01:30]} 19. bxc3 {[%emt 0:00:00]} Bd6 {[%emt 0:00:30]} 20. Bc4 {[%emt 0:01:00]} Qf6 {[%emt 0:01:30]} 21. Bb3 {[%emt 0:01:30]} Kh8 {[%emt 0:01:30]} 22. Ba2 {[%emt 0:02:30]} e5 {[%emt 0:01:30]} 23. Bb1 {[%emt 0:01:30]} Bf5 {[%emt 0:03:30]} 24. Qxf5 {[%emt 0:00:30]} Qxf5 {[%emt 0:01:30]} 25. Bxf5 {[%emt 0:00:00]} Rxf5 {[%emt 0:00:00]} 26. Nh4 {[%emt 0:01:00]} Rf6 {[%emt 0:01:00]} 27. g3 {[%emt 0:01:30]} exd4 {[%emt 0:00:30]} 28. cxd4 {[%emt 0:04:30]} Bxa3 {[%emt 0:00:30]} 29. d5 {[%emt 0:02:30]} Ne5 {[%emt 0:00:00]} 30. f4 {[%emt 0:00:30]} Nc4 {[%emt 0:01:00]} 31. Rf3 {[%emt 0:00:30]} Bd6 {[%emt 0:01:30]} 32. Rc3 {[%emt 0:00:30]} b5 {[%emt 0:00:00]} 33. Nf3 {[%emt 0:01:30]} Re8 {[%emt 0:02:00]} 34. Nd4 {[%emt 0:01:30]} a6 {[%emt 0:02:30]} 35. Ra1 {[%emt 0:06:30]} Ba3 {[%emt 0:01:30]} 36. Raxa3 {[%emt 0:06:30]} Nxa3 {[%emt 0:00:30]} 37. Rxa3 {[%emt 0:00:30]} Rd6 {[%emt 0:00:30]} 38. Nf3 {[%emt 0:00:00]} b4 {[%emt 0:00:00]} 39. Rd3 {[%emt 0:01:00]} Red8 {[%emt 0:00:30]} 40. Ne5 {[%emt 0:01:30]} Rxd5 {[%emt 0:00:30]} 41. Rb3 {[%emt 0:01:30]} Rb8 {[%emt 0:00:30]} 42. Nc6 {[%emt 0:01:30]} Rb6 {[%emt 0:00:30]} 43. Ne5 {[%emt 0:03:30]} a5 {[%emt 0:01:30]} 44. g4 {[%emt 0:10:30]} a4 {[%emt 0:01:30]} 45. Re3 {[%emt 0:21:15]} 0-1

[Event "FIDE World Cadets U8 2022"]
[Site "Batumi"]
[Date "2022.09.24"]
[Round "8.39"]
[White "Xu, Ryan"]
[Black "Ghoreishiamiri, SeyedKian"]
[Result "0-1"]
[ECO "D30"]
[WhiteElo "1822"]
[BlackElo "1583"]
[Annotator "NA RC COMBH"]
[PlyCount "67"]
[EventDate "2022.09.16"]
[EventType "swiss"]
[EventCountry "GEO"]
[SourceTitle "playchess.com"]
[Source "ChessBase"]
[SourceQuality "1"]
[TimeControl "5400+30"]

1. d4 {[%emt 0:00:00]} d5 {[%emt 0:01:00]} 2. c4 {[%emt 0:00:30]} e6 {[%emt 0:00:30]} 3. Nf3 {[%emt 0:00:30]} a6 {[%emt 0:00:30]} 4. g3 {[%emt 0:00:30]} dxc4 {[%emt 0:00:30]} 5. Bg2 {[%emt 0:00:00]} b5 {[%emt 0:00:00]} 6. a4 {[%emt 0:00:00]} Bb7 {[%emt 0:01:00]} 7. O-O {[%emt 0:01:30]} Nd7 {[%emt 0:03:30]} 8. Bf4 {[%emt 0:04:30]} c6 {[%emt 0:13:30]} 9. Nc3 {[%emt 0:04:30]} Ngf6 {[%emt 0:07:30]} 10. Nd2 {[%emt 0:03:30]} Qb6 {[%emt 0:09:30]} 11. Nde4 {[%emt 0:06:30]} Nd5 {[%emt 0:04:30]} 12. Nd6+ {[%emt 0:03:30]} Bxd6 {[%emt 0:06:30]} 13. Bxd6 {[%emt 0:00:30]} c5 {[%emt 0:09:30]} 14. dxc5 {[%emt 0:02:30]} Nxc5 {[%emt 0:00:30]} 15. Be5 {[%emt 0:10:30]} Nxc3 {[%emt 0:02:30]} 16. Bxc3 {[%emt 0:04:30]} Bxg2 {[%emt 0:00:30]} 17. Kxg2 {[%emt 0:00:00]} Qc6+ {[%emt 0:02:30]} 18. Kg1 {[%emt 0:01:00]} O-O {[%emt 0:01:30]} 19. axb5 {[%emt 0:02:30]} axb5 {[%emt 0:01:30]} 20. Qd4 {[%emt 0:04:30]} f6 {[%emt 0:00:30]} 21. Qg4 {[%emt 0:02:30]} Na4 {[%emt 0:06:30]} 22. Bb4 {[%emt 0:01:30]} Rf7 {[%emt 0:02:30]} 23. Bc3 {[%emt 0:03:30]} Rd8 {[%emt 0:01:30]} 24. Rfd1 {[%emt 0:02:30]} Rxd1+ {[%emt 0:00:30]} 25. Rxd1 {[%emt 0:00:00]} Nxc3 {[%emt 0:02:30]} 26. bxc3 {[%emt 0:00:00]} Rd7 {[%emt 0:00:00]} 27. Rxd7 {[%emt 0:03:30]} Qxd7 {[%emt 0:00:00]} 28. Qe4 {[%emt 0:01:30]} Kf7 {[%emt 0:01:30]} 29. f3 {[%emt 0:02:30]} Qa7+ {[%emt 0:01:30]} 30. Kg2 {[%emt 0:00:30]} Qc5 {[%emt 0:01:50]} 31. Qb7+ {[%emt 0:00:30]} Kg6 {[%emt 0:00:13]} 32. Qe4+ {[%emt 0:01:30]} Qf5 {[%emt 0:00:27]} 33. Qd4 {[%emt 0:00:00]} Qc2 {[%emt 0:00:48]} 34. Kf2 {[%emt 0:00:00]} 0-1

[Event "FIDE World Cadets U8 2022"]
[Site "Batumi"]
[Date "2022.09.24"]
[Round "8.42"]
[White "Faramarzi Garousi, Maartia"]
[Black "Zheng, Lerui"]
[Result "1/2-1/2"]
[ECO "D02"]
[WhiteElo "1267"]
[BlackElo "1640"]
[Annotator "NA RC COMBH"]
[PlyCount "52"]
[EventDate "2022.09.16"]
[EventType "swiss"]
[EventCountry "GEO"]
[SourceTitle "playchess.com"]
[Source "ChessBase"]
[SourceQuality "1"]
[TimeControl "5400+30"]

1. d4 d5 2. Bf4 Nf6 3. e3 e6 4. Nf3 Bd6 5. Bg3 c5 6. c3 O-O 7. Nbd2 b6 8. Bd3 Ba6 9. Bxa6 Nxa6 10. O-O Nb8 11. Qe2 Bxg3 12. hxg3 Nbd7 13. Rad1 Qc7 14. Rfe1 Rfe8 15. e4 dxe4 16. Nxe4 cxd4 17. Nxd4 Nxe4 18. Qxe4 Nc5 19. Nb5 Qe7 20. Qf3 e5 21. b4 Nb7 22. Qf5 g6 23. Qd7 Rad8 24. Qxe7 Rxe7 25. Rxd8+ Nxd8 26. Rd1 Ne6 1/2-1/2

[Event "FIDE World Cadets U8 2022"]
[Site "Batumi"]
[Date "2022.09.24"]
[Round "8.43"]
[White "Ling, Chenxuan"]
[Black "Babeikin, Kiryl"]
[Result "1-0"]
[ECO "A50"]
[WhiteElo "1601"]
[BlackElo "1247"]
[Annotator "NA RC COMBH"]
[PlyCount "80"]
[EventDate "2022.09.16"]
[EventType "swiss"]
[EventCountry "GEO"]
[SourceTitle "playchess.com"]
[Source "ChessBase"]
[SourceQuality "1"]
[TimeControl "5400+30"]

1. d4 {[%emt 0:01:00]} Nf6 {[%emt 0:01:00]} 2. c4 {[%emt 0:00:30]} e6 {[%emt 0:00:00]} 3. Nc3 {[%emt 0:00:00]} b6 {[%emt 0:00:00]} 4. e4 {[%emt 0:00:00]} Bb4 {[%emt 0:00:30]} 5. e5 {[%emt 0:00:30]} Ne4 {[%emt 0:02:00]} 6. a3 {[%emt 0:01:00]} Nxc3 {[%emt 0:01:30]} 7. Qg4 {[%emt 0:01:30]} Bf8 {[%emt 0:15:30]} 8. bxc3 {[%emt 0:00:30]} h5 {[%emt 0:00:30]} 9. Qe4 {[%emt 0:02:30]} c6 {[%emt 0:01:00]} 10. Bd3 {[%emt 0:00:30]} d5 {[%emt 0:08:30]} 11. cxd5 {[%emt 0:07:30]} Qxd5 {[%emt 0:11:30]} 12. f4 {[%emt 0:01:30]} Qxe4+ {[%emt 0:01:30]} 13. Bxe4 {[%emt 0:01:30]} Bb7 {[%emt 0:01:30]} 14. Nf3 {[%emt 0:00:30]} Nd7 {[%emt 0:00:30]} 15. O-O {[%emt 0:00:30]} Be7 {[%emt 0:02:00]} 16. Bb2 {[%emt 0:00:00]} O-O-O {[%emt 0:00:30]} 17. c4 {[%emt 0:01:00]} Nb8 {[%emt 0:03:30]} 18. Rfd1 {[%emt 0:01:30]} Rd7 {[%emt 0:02:30]} 19. Rd2 {[%emt 0:02:30]} Rhd8 {[%emt 0:01:30]} 20. Rad1 {[%emt 0:00:30]} Na6 {[%emt 0:00:30]} 21. f5 {[%emt 0:01:30]} Nc7 {[%emt 0:00:30]} 22. fxe6 {[%emt 0:03:30]} fxe6 {[%emt 0:02:30]} 23. Kf2 {[%emt 0:03:30]} c5 {[%emt 0:00:30]} 24. Bxb7+ {[%emt 0:03:30]} Kxb7 {[%emt 0:00:00]} 25. dxc5 {[%emt 0:00:30]} Bxc5+ {[%emt 0:00:30]} 26. Kg3 {[%emt 0:00:30]} Rxd2 {[%emt 0:01:30]} 27. Rxd2 {[%emt 0:00:00]} Rxd2 {[%emt 0:01:30]} 28. Nxd2 {[%emt 0:02:30]} Kc6 {[%emt 0:07:30]} 29. Kh4 {[%emt 0:00:30]} g6 {[%emt 0:00:30]} 30. Ne4 {[%emt 0:02:00]} Be3 {[%emt 0:00:30]} 31. a4 {[%emt 0:07:30]} Ne8 {[%emt 0:01:30]} 32. Kg3 {[%emt 0:01:30]} Ng7 {[%emt 0:02:30]} 33. Kf3 {[%emt 0:01:30]} Bh6 {[%emt 0:02:30]} 34. Bc3 {[%emt 0:05:30]} Nf5 {[%emt 0:01:30]} 35. g3 {[%emt 0:02:30]} Ng7 {[%emt 0:08:30]} 36. Bb4 {[%emt 0:04:30]} a5 {[%emt 0:01:30]} 37. Bc3 {[%emt 0:13:30]} Ne8 {[%emt 0:00:30]} 38. Bd4 {[%emt 0:02:30]} Nc7 {[%emt 0:01:30]} 39. Nf6 {[%emt 0:03:30]} Na6 {[%emt 0:00:30]} 40. Ng8 {[%emt 0:02:30]} Bf8 {[%emt 0:02:30]} 1-0

[Event "FIDE World Cadets U8 2022"]
[Site "Batumi"]
[Date "2022.09.24"]
[Round "8.44"]
[White "Sanikommu Jaideep Reddy"]
[Black "Deepak Ambattu Rithvik"]
[Result "0-1"]
[ECO "A45"]
[WhiteElo "1239"]
[BlackElo "1542"]
[Annotator "NA RC COMBH"]
[PlyCount "82"]
[EventDate "2022.09.16"]
[EventType "swiss"]
[EventCountry "GEO"]
[SourceTitle "playchess.com"]
[Source "ChessBase"]
[SourceQuality "1"]
[TimeControl "5400+30"]

1. d4 {[%emt 0:01:00]} Nf6 {[%emt 0:01:00]} 2. Bf4 {[%emt 0:00:30]} c5 {[%emt 0:00:30]} 3. e3 {[%emt 0:01:30]} Qb6 {[%emt 0:00:30]} 4. Nc3 {[%emt 0:00:30]} d6 {[%emt 0:00:00]} 5. a3 {[%emt 0:03:30]} g6 {[%emt 0:00:30]} 6. Nf3 {[%emt 0:01:30]} Bg7 {[%emt 0:00:30]} 7. Be2 {[%emt 0:02:30]} O-O {[%emt 0:02:30]} 8. O-O {[%emt 0:02:30]} cxd4 {[%emt 0:02:30]} 9. exd4 {[%emt 0:01:30]} Bf5 {[%emt 0:00:30]} 10. Rb1 {[%emt 0:07:30]} d5 {[%emt 0:03:00]} 11. Re1 {[%emt 0:08:30]} Nbd7 {[%emt 0:03:30]} 12. Bd3 {[%emt 0:04:30]} Bxd3 {[%emt 0:03:30]} 13. Qxd3 {[%emt 0:00:30]} e6 {[%emt 0:01:30]} 14. Ne5 {[%emt 0:05:30]} Nxe5 {[%emt 0:01:30]} 15. Bxe5 {[%emt 0:01:30]} Nd7 {[%emt 0:07:30]} 16. Bxg7 {[%emt 0:06:30]} Kxg7 {[%emt 0:00:30]} 17. h3 {[%emt 0:07:30]} Rac8 {[%emt 0:01:30]} 18. Kh1 {[%emt 0:06:30]} a6 {[%emt 0:02:30]} 19. Rg1 {[%emt 0:03:30]} Rc4 {[%emt 0:03:30]} 20. Ne2 {[%emt 0:01:30]} Rfc8 {[%emt 0:02:30]} 21. c3 {[%emt 0:01:30]} Nf6 {[%emt 0:01:30]} 22. f3 {[%emt 0:02:30]} h5 {[%emt 0:03:30]} 23. Rge1 {[%emt 0:06:30]} Qd6 {[%emt 0:01:30]} 24. h4 {[%emt 0:03:30]} e5 {[%emt 0:02:30]} 25. g3 {[%emt 0:02:30]} exd4 {[%emt 0:01:30]} 26. cxd4 {[%emt 0:03:30]} R8c7 {[%emt 0:05:30]} 27. Kg2 {[%emt 0:01:29]} Qb6 {[%emt 0:00:30]} 28. Kh1 {[%emt 0:02:23]} Rc2 {[%emt 0:01:30]} 29. Nf4 {[%emt 0:01:47]} Rxb2 {[%emt 0:03:30]} 30. Rxb2 {[%emt 0:01:25]} Qxb2 {[%emt 0:00:30]} 31. Re2 {[%emt 0:00:35]} Qc1+ {[%emt 0:00:30]} 32. Kg2 {[%emt 0:01:13]} Rc3 {[%emt 0:00:30]} 33. Qd2 {[%emt 0:01:43]} Qxd2 {[%emt 0:00:30]} 34. Rxd2 {[%emt 0:00:04]} Rxa3 {[%emt 0:00:30]} 35. Rc2 {[%emt 0:00:05]} b5 {[%emt 0:02:30]} 36. Rc7 {[%emt 0:00:28]} Ne8 {[%emt 0:01:30]} 37. Rc5 {[%emt 0:01:06]} b4 {[%emt 0:00:30]} 38. Nxd5 {[%emt 0:01:24]} b3 {[%emt 0:00:30]} 39. Rc1 {[%emt 0:00:30]} Ra2+ {[%emt 0:00:30]} 40. Kh3 {[%emt 0:00:30]} a5 {[%emt 0:01:30]} 41. Rb1 {[%emt 0:00:30]} Ra3 {[%emt 0:03:30]} 0-1

[Event "FIDE World Cadets U8 2022"]
[Site "Batumi"]
[Date "2022.09.24"]
[Round "8.45"]
[White "Konovalov Timofei Al."]
[Black "Akramov Khasan"]
[Result "1/2-1/2"]
[ECO "B01"]
[WhiteElo "1431"]
[BlackElo "1235"]
[Annotator "NA RC COMBH"]
[PlyCount "71"]
[EventDate "2022.09.16"]
[EventType "swiss"]
[EventCountry "GEO"]
[SourceTitle "playchess.com"]
[Source "ChessBase"]
[SourceQuality "1"]
[TimeControl "5400+30"]

1. e4 {[%emt 0:01:00]} d5 {[%emt 0:01:00]} 2. exd5 {[%emt 0:00:30]} Nf6 {[%emt 0:00:00]} 3. Nf3 {[%emt 0:00:00]} Nxd5 {[%emt 0:00:00]} 4. d4 {[%emt 0:00:00]} g6 {[%emt 0:00:30]} 5. c4 {[%emt 0:00:30]} Nb6 {[%emt 0:00:00]} 6. Nc3 {[%emt 0:00:30]} Bg7 {[%emt 0:00:30]} 7. Be2 {[%emt 0:00:30]} O-O {[%emt 0:00:30]} 8. Be3 {[%emt 0:00:30]} c6 {[%emt 0:01:00]} 9. O-O {[%emt 0:00:30]} Be6 {[%emt 0:01:30]} 10. Qb3 {[%emt 0:07:00]} Na6 {[%emt 0:11:30]} 11. Rfd1 {[%emt 0:11:30]} Qc7 {[%emt 0:05:30]} 12. Rac1 {[%emt 0:12:30]} Rfd8 {[%emt 0:07:30]} 13. d5 {[%emt 0:05:30]} Bd7 {[%emt 0:01:30]} 14. dxc6 {[%emt 0:27:30]} Bxc6 {[%emt 0:00:30]} 15. c5 {[%emt 0:03:30]} Nd7 {[%emt 0:00:30]} 16. Nd5 {[%emt 0:13:52]} Bxd5 {[%emt 0:01:30]} 17. Rxd5 {[%emt 0:00:54]} Nab8 {[%emt 0:06:30]} 18. Bg5 {[%emt 0:03:20]} Nc6 {[%emt 0:00:30]} 19. Bc4 {[%emt 0:01:09]} Nde5 {[%emt 0:05:30]} 20. Nxe5 {[%emt 0:03:58]} Nxe5 {[%emt 0:00:30]} 21. Bf4 {[%emt 0:01:35]} e6 {[%emt 0:01:00]} 22. Rxd8+ {[%emt 0:00:52]} Qxd8 {[%emt 0:00:30]} 23. Bxe5 {[%emt 0:00:28]} Bxe5 {[%emt 0:00:00]} 24. Bxe6 {[%emt 0:00:00]} Qf6 {[%emt 0:00:30]} 25. Bd5 {[%emt 0:03:26]} Qf4 {[%emt 0:00:30]} 26. Rd1 {[%emt 0:01:53]} Qxh2+ {[%emt 0:00:30]} 27. Kf1 {[%emt 0:00:30]} Qf4 {[%emt 0:01:30]} 28. Bxb7 {[%emt 0:01:55]} Re8 {[%emt 0:01:30]} 29. Qb5 {[%emt 0:03:55]} Re6 {[%emt 0:00:30]} 30. Bd5 {[%emt 0:00:45]} Re7 {[%emt 0:01:30]} 31. Qc4 {[%emt 0:01:17]} Qf6 {[%emt 0:01:30]} 32. b4 {[%emt 0:01:02]} Bg3 {[%emt 0:01:30]} 33. Bf3 {[%emt 0:00:43]} Bc7 {[%emt 0:00:30]} 34. Qd4 {[%emt 0:01:10]} Qa6+ {[%emt 0:01:30]} 35. Kg1 {[%emt 0:00:43]} Qxa2 {[%emt 0:01:30]} 36. Qf6 {[%emt 0:01:14]} 1/2-1/2